bitfinex-derivatives/quotes_BTCF0:USTF0_20241213
["timestamp","ask_amount","ask_price","bid_price","bid_amount"]
[1734126698343,0.57275504,101470.0,101460.0,2.22334532]
[1734126698934,0.57275504,101470.0,101460.0,2.23122532]
[1734126699233,0.57275504,101470.0,101460.0,2.23910532]
[1734126699837,0.57275504,101470.0,101460.0,1.03910532]
[1734126700232,0.57275504,101470.0,101460.0,2.23910532]
[1734126702445,0.56049118,101470.0,101460.0,2.23910532]
[1734126702646,0.5727516,101470.0,101460.0,2.23910532]
[1734126702846,0.56049118,101470.0,101460.0,2.23910532]
[1734126703738,0.5727516,101470.0,101460.0,2.23910532]
[1734126704445,0.5727516,101470.0,101460.0,2.00318403]
[1734126705045,0.58256268,101470.0,101460.0,2.00318403]
[1734126705636,0.58256235,101470.0,101460.0,2.00318403]
[1734126705944,0.57030226,101470.0,101460.0,2.23910532]
[1734126707144,0.57030226,101470.0,101460.0,1.03910532]
[1734126707735,0.57030226,101470.0,101460.0,2.23910532]
[1734126708244,0.57030226,101470.0,101460.0,1.03910532]
[1734126708751,0.57030226,101470.0,101460.0,2.23910532]
[1734126708945,0.57030226,101470.0,101460.0,2.00318403]
[1734126709937,0.57030226,101470.0,101460.0,0.80318403]
[1734126710341,0.45257408,101470.0,101460.0,2.00318403]
[1734126710839,0.45257408,101470.0,101460.0,0.80318403]
[1734126711246,0.57030226,101470.0,101460.0,0.80318403]
[1734126711651,0.45257408,101470.0,101460.0,0.80318403]
[1734126711846,0.57030226,101470.0,101460.0,0.80318403]
[1734126717245,0.57030226,101470.0,101460.0,1.03910532]
[1734126720051,0.63155167,101470.0,101460.0,0.92858891]
[1734126720251,0.63155167,101470.0,101460.0,0.69266762]
[1734126720252,0.64381273,101470.0,101460.0,0.69266762]
[1734126720547,0.67324477,101470.0,101460.0,0.01576]
[1734126720752,0.66098371,101470.0,101460.0,0.01576]
[1734126721250,1.19852352,101470.0,101460.0,0.01576]
[1734126722553,1.0513633,101470.0,101460.0,0.01576]
[1734126725951,1.11261271,101470.0,101460.0,0.01576]
[1734126726162,1.0513633,101470.0,101460.0,0.01576]
[1734126726847,1.11261271,101470.0,101460.0,0.01576]
[1734126727454,1.0513633,101470.0,101460.0,0.01576]
[1734126728659,1.11261271,101470.0,101460.0,0.01576]
[1734126729357,1.07870302,101470.0,101460.0,0.01576]
[1734126730455,1.0513633,101470.0,101460.0,0.01576]
[1734126734261,1.0511735,101470.0,101460.0,0.01576]
[1734126739466,0.98992409,101470.0,101460.0,0.01576]
[1734126739662,1.0511735,101470.0,101460.0,0.01576]
[1734126742461,1.11242291,101470.0,101460.0,0.01576]
[1734126742662,1.11242291,101470.0,101440.0,0.97457832]
[1734126742663,0.049273,101450.0,101440.0,0.97457832]
[1734126742865,0.58904089,101450.0,101440.0,0.97457832]
[1734126743262,0.58904089,101450.0,101440.0,0.97407832]
[1734126743763,0.60130328,101450.0,101440.0,0.98313832]
[1734126743968,0.58904089,101450.0,101440.0,0.98313832]
[1734126744274,0.54005387,101450.0,101440.0,0.98363832]
[1734126745271,0.52779148,101450.0,101440.0,0.8062307]
[1734126746274,0.52779148,101450.0,101440.0,0.8067307]
[1734126747271,0.54005387,101450.0,101440.0,0.8062307]
[1734126747461,0.54005387,101450.0,101440.0,1.34989089]
[1734126747665,0.52779148,101450.0,101440.0,1.34989089]
[1734126747970,0.54005387,101450.0,101440.0,1.34989089]
[1734126748362,0.54005387,101450.0,101440.0,1.35039089]
[1734126748562,0.52779148,101450.0,101440.0,1.35039089]
[1734126748867,0.54006658,101450.0,101440.0,1.35039089]
[1734126749369,0.68721469,101450.0,101440.0,1.1139696]
[1734126749870,0.69684257,101450.0,101440.0,1.1139696]
[1734126750274,0.69684257,101450.0,101440.0,1.1144696]
[1734126751273,0.69684257,101450.0,101440.0,1.1139696]
[1734126752363,0.69684257,101450.0,101440.0,1.1144696]
[1734126753069,0.57912409,101450.0,101440.0,1.1144696]
[1734126753262,0.57912409,101450.0,101440.0,1.1139696]
[1734126755267,0.57913599,101450.0,101440.0,1.1139696]
[1734126755873,0.6403854,101450.0,101440.0,1.05272019]
[1734126757871,0.57913599,101450.0,101440.0,1.05272019]
[1734126760076,0.57913599,101450.0,101440.0,1.40660319]
[1734126760666,0.57913599,101450.0,101440.0,1.4678526]
[1734126761272,0.57914367,101450.0,101440.0,1.4678526]
[1734126761774,0.57914367,101450.0,101440.0,1.46812979]
[1734126764472,0.56684899,101450.0,101440.0,1.11424679]
[1734126764677,0.57914439,101450.0,101440.0,1.11424679]
[1734126766473,0.57914439,101450.0,101440.0,1.87893353]
[1734126766474,0.33638545,101450.0,101440.0,1.87893353]
[1734126766670,0.32675757,101450.0,101440.0,1.6445537]
[1734126766872,0.13033646,101450.0,101440.0,2.11007207]
[1734126767180,0.68755457,101460.0,101450.0,0.049273]
[1734126767381,0.68755457,101460.0,101450.0,1.94852751]
[1734126767784,0.68754955,101460.0,101450.0,2.44852751]
[1734126768466,0.68754955,101460.0,101450.0,2.45758751]
[1734126768871,0.67525917,101460.0,101450.0,2.45758751]
[1734126769076,0.68754683,101460.0,101450.0,2.69386664]
[1734126770078,0.68754683,101460.0,101450.0,1.49386664]
[1734126770574,0.52811106,101460.0,101450.0,1.25758751]
[1734126771078,0.52811106,101460.0,101450.0,1.4938078]
[1734126772380,0.52811106,101460.0,101450.0,1.4917166]
[1734126772774,0.52811106,101460.0,101450.0,1.28769419]
[1734126772775,0.73650858,101460.0,101450.0,1.28769419]
[1734126772970,0.77989302,101460.0,101450.0,0.92243058]
[1734126774278,0.76760858,101460.0,101450.0,0.92243058]
[1734126774477,0.77989227,101460.0,101450.0,0.92243058]
[1734126774677,0.77989227,101460.0,101450.0,0.98367999]
[1734126776682,0.81229227,101460.0,101450.0,0.98367999]
[1734126777582,0.81229177,101460.0,101450.0,0.92243058]
[1734126782383,0.69425071,101460.0,101450.0,0.74528029]
[1734126782687,0.69425071,101460.0,101450.0,0.92241999]
[1734126782890,0.68196752,101460.0,101450.0,0.74528029]
[1734126783089,0.87079768,101460.0,101450.0,0.50906]
[1734126783386,0.69424767,101460.0,101450.0,0.9224176]
[1734126783575,0.87079768,101460.0,101450.0,0.68619731]
[1734126783780,0.77261883,101460.0,101450.0,0.68619731]
[1734126783994,0.77261883,101460.0,101450.0,0.18619731]
[1734126784591,0.77261883,101460.0,101450.0,0.00906]
[1734126788590,0.65012001,101460.0,101450.0,0.00906]
[1734126788789,0.77261883,101460.0,101450.0,0.00906]
[1734126790479,0.78489719,101460.0,101450.0,0.18619731]
[1734126790686,0.78489719,101460.0,101450.0,0.00906]
[1734126790894,0.78489719,101460.0,101450.0,0.18619731]
[1734126791093,0.93222573,101460.0,101450.0,0.18619731]
[1734126791289,0.78489719,101460.0,101450.0,0.18619731]
[1734126791487,0.93222941,101460.0,101450.0,0.18619731]
[1734126791687,0.78489719,101460.0,101450.0,0.18619731]
[1734126791890,0.78489719,101460.0,101450.0,0.00906]
[1734126792392,0.77261883,101460.0,101450.0,0.00906]
[1734126793481,0.049273,101450.0,101430.0,0.91533613]
[1734126793681,0.88725414,101440.0,101430.0,0.91533613]
[1734126793891,0.88725414,101440.0,101430.0,0.17759957]
[1734126793892,0.91999191,101440.0,101430.0,0.17759957]
[1734126794188,0.77271187,101440.0,101430.0,0.0005]
[1734126794496,0.046092,101430.0,101420.0,0.67709957]
[1734126794687,0.7763232,101430.0,101420.0,0.17709957]
[1734126795399,0.049287,101420.0,101410.0,1.33536927]
[1734126795700,0.11053641,101420.0,101410.0,1.33536927]
[1734126797200,0.11053641,101420.0,101410.0,1.27411986]
[1734126799293,0.11053641,101420.0,101410.0,1.03789957]
[1734126799493,0.11053641,101420.0,101410.0,1.03839957]
[1734126799694,0.47133641,101420.0,101410.0,0.67759957]
[1734126799893,0.5890773,101420.0,101410.0,0.5005]
[1734126800293,0.47133641,101420.0,101410.0,0.5005]
[1734126800901,0.55948073,101420.0,101410.0,0.5005]
[1734126802508,0.5694247,101420.0,101410.0,0.5005]
[1734126803003,0.48128038,101420.0,101410.0,0.5005]
[1734126803198,0.51238038,101420.0,101410.0,0.5005]
[1734126803905,0.6005247,101420.0,101410.0,0.5005]
[1734126804906,0.51238038,101420.0,101410.0,0.5005]
[1734126805108,0.6005247,101420.0,101410.0,0.5005]
[1734126807005,0.50817529,101420.0,101410.0,0.61104141]
[1734126807202,0.13743132,101420.0,101410.0,1.21019039]
[1734126807405,0.049287,101420.0,101410.0,1.14894098]
[1734126807709,0.049287,101420.0,101410.0,2.34894098]
[1734126808113,0.049287,101420.0,101410.0,2.58516127]
[1734126808304,0.049287,101420.0,101410.0,2.64641068]
[1734126808500,0.049287,101420.0,101410.0,2.58516127]
[1734126810009,0.410085,101430.0,101420.0,0.049287]
[1734126810216,0.11003793,101440.0,101420.0,1.04400568]
[1734126810406,0.13741932,101450.0,101440.0,0.049277]
[1734126810610,0.049275,101450.0,101440.0,0.70967539]
[1734126810810,0.049275,101450.0,101440.0,0.74087539]
[1734126811010,0.049275,101450.0,101440.0,1.24087539]
[1734126811205,0.56668521,101460.0,101440.0,1.24087539]
[1734126811411,0.56668521,101460.0,101450.0,0.14262241]
[1734126811412,0.62869118,101460.0,101450.0,0.14262241]
[1734126811616,0.62869118,101460.0,101450.0,0.081373]
[1734126811617,0.68995138,101460.0,101450.0,0.081373]
[1734126812112,0.68995138,101460.0,101450.0,0.581373]
[1734126812419,0.68945138,101460.0,101450.0,0.581373]
[1734126812619,0.69946795,101460.0,101450.0,0.581373]
[1734126813514,0.69996795,101460.0,101450.0,0.581373]
[1734126815724,0.68772219,101460.0,101450.0,0.581373]
[1734126818110,0.76121736,101460.0,101450.0,0.5]
[1734126818517,0.76121225,101460.0,101450.0,0.5]
[1734126818725,0.69996284,101460.0,101450.0,0.5]
[1734126821619,0.73286174,101460.0,101450.0,0.5]
[1734126822038,0.79411115,101460.0,101440.0,0.549275]
[1734126822327,0.63031463,101450.0,101440.0,0.549275]
[1734126822627,0.7389867,101450.0,101440.0,0.549275]
[1734126823022,0.75122625,101450.0,101440.0,0.549275]
[1734126826130,0.75122625,101450.0,101440.0,0.5]
[1734126828032,0.75122735,101450.0,101440.0,0.5]
[1734126832526,0.66310395,101450.0,101440.0,0.5]
[1734126833226,0.79803941,101450.0,101440.0,0.5]
[1734126835239,0.68029852,101450.0,101440.0,0.5]
[1734126836126,0.69254803,101450.0,101440.0,0.5]
[1734126837337,0.85703457,101450.0,101440.0,0.5]
[1734126838237,0.79578516,101450.0,101440.0,0.67177582]
[1734126838442,0.71851024,101450.0,101440.0,0.84887539]
[1734126838627,0.71851024,101450.0,101440.0,0.78762598]
[1734126838825,0.71851024,101450.0,101440.0,1.08509568]
[1734126838826,0.54013413,101450.0,101440.0,1.08509568]
[1734126839035,0.54013413,101450.0,101440.0,0.99399686]
[1734126839238,0.54013413,101450.0,101440.0,1.11649568]
[1734126839639,0.54013413,101450.0,101440.0,1.05524627]
[1734126840133,0.52786597,101450.0,101440.0,1.08614627]
[1734126840338,0.68731521,101450.0,101440.0,1.08614627]
[1734126842338,0.68731797,101450.0,101440.0,1.08614627]
[1734126847243,0.68731797,101450.0,101440.0,0.9090467]
[1734126848043,0.74856738,101450.0,101440.0,1.0249585]
[1734126848243,0.63077441,101450.0,101440.0,0.9133815]
[1734126848438,0.71075846,101450.0,101440.0,0.67716121]
[1734126848644,0.71075846,101450.0,101440.0,0.5]
[1734126849142,0.71075846,101450.0,101440.0,0.47782249]
[1734126849442,0.71075846,101450.0,101440.0,0.6549837]
[1734126849636,0.71075846,101450.0,101440.0,0.7042607]
[1734126849837,0.85806547,101450.0,101440.0,0.7042607]
[1734126850449,0.79681606,101450.0,101440.0,0.7042607]
[1734126850937,0.79681606,101450.0,101440.0,0.76551011]
[1734126851140,0.79681606,101450.0,101440.0,0.7042607]
[1734126851935,0.79681606,101450.0,101440.0,0.76551011]
[1734126852147,0.77879212,101450.0,101440.0,1.0017304]
[1734126852444,0.56965607,101450.0,101440.0,1.0017304]
[1734126852640,0.56965607,101450.0,101440.0,1.0660304]
[1734126853441,0.74639212,101450.0,101440.0,1.0660304]
[1734126854844,0.74639256,101450.0,101440.0,1.0660304]
[1734126855848,0.73411606,101450.0,101440.0,1.0660304]
[1734126856244,0.74639445,101450.0,101440.0,1.0660304]
[1734126856448,0.73411606,101450.0,101440.0,1.0660304]
[1734126861854,0.56966154,101450.0,101440.0,1.0660304]
[1734126864144,0.56966168,101450.0,101440.0,1.0660304]
[1734126865157,0.56966168,101450.0,101440.0,1.0017304]
[1734126865749,0.63276208,101450.0,101440.0,0.94048099]
[1734126866344,0.63276208,101450.0,101440.0,0.76331978]
[1734126867049,0.63276208,101450.0,101440.0,0.82456919]
[1734126871350,0.63276208,101450.0,101440.0,0.76331978]
[1734126872261,0.63276208,101450.0,101440.0,0.8913089]
[1734126872262,0.87074754,101450.0,101440.0,0.8913089]
[1734126872462,0.71115846,101450.0,101440.0,0.65508861]
[1734126875854,0.71115846,101450.0,101440.0,0.47782249]
[1734126876851,0.049277,101440.0,101430.0,0.67726612]
[1734126877058,0.049282,101430.0,101420.0,0.96277141]
[1734126877359,0.69464418,101430.0,101420.0,0.72655112]
[1734126877546,0.69464418,101430.0,101420.0,0.78830053]
[1734126877547,0.87145311,101430.0,101420.0,0.78830053]
[1734126878355,0.69464418,101430.0,101420.0,0.78830053]
[1734126878554,0.69464418,101430.0,101420.0,0.78780053]
[1734126879758,0.69464418,101430.0,101420.0,0.78830053]
[1734126880161,0.63339477,101430.0,101420.0,0.78830053]
[1734126880355,0.63339477,101430.0,101420.0,0.61103441]
[1734126880558,0.63339477,101430.0,101420.0,0.61053441]
[1734126881356,0.75111901,101430.0,101420.0,0.61053441]
[1734126881558,0.81236842,101430.0,101420.0,0.61103441]
[1734126882762,0.81236842,101430.0,101420.0,0.61053441]
[1734126883561,0.81236842,101430.0,101420.0,0.61103441]
[1734126884861,0.81199638,101430.0,101420.0,0.61103441]
[1734126885053,0.79974131,101430.0,101420.0,0.61103441]
[1734126885257,0.81199638,101430.0,101420.0,0.61103441]
[1734126886364,0.82172365,101430.0,101420.0,0.61103441]
[1734126886566,0.82172365,101430.0,101420.0,0.61053441]
[1734126887663,0.67466259,101430.0,101420.0,0.61053441]
[1734126888064,0.66240752,101430.0,101420.0,0.61053441]
[1734126888363,0.67465953,101430.0,101420.0,0.61053441]
[1734126890868,0.67465953,101430.0,101420.0,0.549285]
[1734126891067,0.67465953,101430.0,101420.0,0.61053441]
[1734126891662,0.67465953,101430.0,101420.0,0.56124941]
[1734126891869,0.82172059,101430.0,101420.0,0.56124941]
[1734126894353,0.82172059,101430.0,101420.0,0.5]
[1734126894560,0.82172111,101430.0,101420.0,0.56124941]
[1734126895758,0.7604717,101430.0,101420.0,0.56124941]
[1734126896170,0.74821917,101430.0,101420.0,0.56124941]
[1734126896367,0.76047283,101430.0,101420.0,0.56124941]
[1734126899271,0.64282399,101430.0,101420.0,0.56124941]
[1734126899471,0.64282399,101430.0,101420.0,0.5]
[1734126899774,0.7040734,101430.0,101420.0,0.5]
[1734126900775,0.70408432,101430.0,101420.0,0.5]
[1734126901363,0.86829301,101430.0,101420.0,0.5]
[1734126903471,0.049287,101420.0,101410.0,0.67687213]
[1734126903674,0.79542305,101420.0,101410.0,0.67687213]
[1734126903974,0.73417364,101420.0,101410.0,0.73812154]
[1734126904275,0.79542305,101420.0,101410.0,0.73812154]
[1734126905572,0.73417364,101420.0,101410.0,0.73812154]
[1734126906281,0.58686153,101420.0,101410.0,0.73812154]
[1734126907662,0.58686153,101420.0,101410.0,0.75842698]
[1734126909076,0.73421465,101420.0,101410.0,0.75842698]
[1734126910277,0.79546406,101420.0,101410.0,0.75842698]
[1734126910976,0.80774268,101420.0,101410.0,0.99425649]
[1734126911173,0.61868953,101420.0,101410.0,0.99425649]
[1734126911369,0.63096806,101420.0,101410.0,0.99425649]
[1734126911772,0.79546406,101420.0,101410.0,0.99425649]
[1734126912168,0.79546406,101420.0,101410.0,0.75842698]
[1734126912976,0.79546406,101420.0,101410.0,0.99425649]
[1734126914176,0.73421465,101420.0,101410.0,0.99425649]
[1734126914380,0.56971849,101420.0,101410.0,0.99425649]
[1734126914573,0.6875909,101420.0,101410.0,0.99425649]
[1734126914774,0.56971849,101420.0,101410.0,0.99425649]
[1734126917883,0.56971849,101420.0,101410.0,0.93300708]
[1734126918075,0.56971849,101420.0,101410.0,0.99425649]
[1734126919085,0.73421465,101420.0,101410.0,0.93300708]
[1734126922678,0.73421465,101420.0,101410.0,0.98229908]
[1734126929289,0.58686153,101420.0,101410.0,0.98229908]
[1734126929995,0.53757453,101420.0,101410.0,1.04354849]
[1734126930185,0.63848998,101420.0,101410.0,1.26887519]
[1734126930385,0.49104657,101420.0,101410.0,1.20762578]
[1734126930695,0.47875924,101420.0,101410.0,2.40762578]
[1734126930893,0.52804624,101420.0,101410.0,2.46887519]
[1734126931187,0.62879673,101420.0,101410.0,2.76137005]
[1734126932193,0.62879563,101420.0,101410.0,2.76137005]
[1734126932990,0.62879396,101420.0,101410.0,2.76137005]
[1734126933187,0.62879396,101420.0,101410.0,2.46887519]
[1734126933791,0.62879396,101420.0,101410.0,2.40762578]
[1734126934985,0.62879396,101420.0,101410.0,2.41733436]
[1734126935789,0.62879078,101420.0,101410.0,2.47858377]
[1734126937101,0.62879078,101420.0,101410.0,2.41733436]
[1734126937697,0.62879078,101420.0,101410.0,2.47858377]
[1734126938293,0.57950378,101420.0,101410.0,2.47858377]
[1734126938798,0.57950378,101420.0,101410.0,2.4766265]
[1734126939188,0.5672224,101420.0,101410.0,2.4766265]
[1734126942803,0.2064224,101420.0,101410.0,2.4766265]
[1734126943403,0.2064224,101420.0,101410.0,2.47636438]
[1734126946502,0.08846316,101420.0,101410.0,2.83716438]
[1734126947603,0.08846316,101420.0,101410.0,3.19090865]
[1734126947998,0.08846316,101420.0,101410.0,2.83716438]
[1734126948599,0.08846316,101420.0,101410.0,3.19090865]
[1734126948810,0.08846316,101420.0,101410.0,2.47636438]
[1734126949100,0.08846316,101420.0,101410.0,3.19090865]
[1734126949299,0.08846316,101420.0,101410.0,1.63716438]
[1734126949500,0.2069224,101430.0,101410.0,1.69612176]
[1734126949705,0.2064224,101430.0,101420.0,2.05949301]
[1734126949905,0.08846316,101430.0,101420.0,2.30836566]
[1734126950307,0.08846316,101430.0,101420.0,2.80836566]
[1734126950699,0.08846316,101430.0,101420.0,2.8286711]
[1734126950700,0.2064224,101430.0,101420.0,2.8286711]
[1734126951303,0.2064224,101430.0,101420.0,3.06477324]
[1734126951895,0.6165044,101430.0,101420.0,2.12819918]
[1734126952095,0.65459065,101430.0,101420.0,0.80570036]
[1734126952300,0.75306281,101430.0,101420.0,1.04404256]
[1734126952603,0.75306281,101430.0,101420.0,0.80793464]
[1734126952604,0.63510357,101430.0,101420.0,0.80793464]
[1734126953010,0.63510357,101430.0,101420.0,0.74668523]
[1734126953309,0.63510357,101430.0,101420.0,0.80793464]
[1734126953310,0.79959994,101430.0,101420.0,0.80793464]
[1734126954306,0.62282541,101430.0,101420.0,0.80793464]
[1734126954506,0.63510136,101430.0,101420.0,0.86918405]
[1734126954705,0.75295129,101430.0,101420.0,1.10529197]
[1734126954904,0.75295129,101430.0,101420.0,1.04404256]
[1734126955911,0.63510136,101430.0,101420.0,1.04404256]
[1734126958610,0.63510136,101430.0,101420.0,0.86694977]
[1734126961706,0.63510136,101430.0,101420.0,0.92819918]
[1734126962415,0.63510136,101430.0,101420.0,0.86694977]
[1734126963010,0.62282541,101430.0,101420.0,0.86694977]
[1734126963216,0.63511048,101430.0,101420.0,0.86694977]
[1734126963416,0.63511048,101430.0,101420.0,1.04420974]
[1734126963607,0.63511048,101430.0,101420.0,0.86694977]
[1734126966812,0.63511048,101430.0,101420.0,0.92819918]
[1734126968111,0.63511048,101430.0,101420.0,0.80570036]
[1734126968421,0.63511048,101430.0,101420.0,0.86694977]
[1734126970013,0.63511048,101430.0,101420.0,1.04421827]
[1734126970413,0.63511048,101430.0,101420.0,0.86694977]
[1734126971922,0.63511048,101430.0,101420.0,1.04422289]
[1734126972512,0.63511048,101430.0,101420.0,0.86694977]
[1734126974122,0.39227518,101430.0,101420.0,1.41136474]
[1734126974318,0.63511048,101430.0,101420.0,1.41136474]
[1734126974513,0.75307306,101430.0,101420.0,1.41136474]
[1734126975016,0.63511048,101430.0,101420.0,1.41112438]
[1734126975221,0.63511048,101430.0,101420.0,1.16215696]
[1734126975414,0.63511048,101430.0,101420.0,1.4111099]
[1734126975611,0.63511048,101430.0,101420.0,1.16215696]
[1734126975813,0.63511048,101430.0,101420.0,1.04423099]
[1734126976015,0.63511048,101430.0,101420.0,1.41098481]
[1734126976212,0.63511048,101430.0,101420.0,0.86694977]
[1734126976423,0.81188501,101430.0,101420.0,1.04422905]
[1734126976617,0.81188501,101430.0,101420.0,0.98298143]
[1734126976828,0.79959994,101430.0,101420.0,0.98297783]
[1734126977018,0.43879994,101430.0,101420.0,1.34377783]
[1734126977216,0.39227769,101430.0,101420.0,1.11288494]
[1734126977420,0.39227769,101430.0,101420.0,1.34943364]
[1734126977716,0.39227769,101430.0,101420.0,1.34943026]
[1734126978518,0.63511257,101430.0,101420.0,1.34943026]
[1734126978713,0.63511257,101430.0,101420.0,0.80594859]
[1734126978927,0.63511257,101430.0,101420.0,1.10115578]
[1734126979120,0.81188676,101430.0,101420.0,0.98322464]
[1734126979316,0.77948676,101430.0,101420.0,1.04447405]
[1734126979516,0.77948676,101430.0,101420.0,0.98322464]
[1734126979723,0.77948676,101430.0,101420.0,2.18322464]
[1734126980024,0.65167482,101430.0,101420.0,0.75666159]
[1734126980213,0.68100594,101430.0,101420.0,0.19758882]
[1734126980522,0.50423141,101430.0,101420.0,0.02030544]
[1734126983423,0.47025486,101430.0,101420.0,0.08155485]
[1734126983922,0.50423141,101430.0,101420.0,0.02030544]
[1734126985325,0.68096795,101430.0,101420.0,0.02030544]
[1734126986923,0.61971854,101430.0,101420.0,0.02030544]
[1734126987126,0.68096795,101430.0,101420.0,0.02030544]
[1734126987829,0.61971854,101430.0,101420.0,0.02030544]
[1734126988031,0.68096795,101430.0,101420.0,0.02030544]
[1734126992333,0.70054122,101430.0,101420.0,0.02030544]
[1734127002333,0.63929181,101430.0,101420.0,0.02030544]
[1734127002632,0.70054122,101430.0,101420.0,0.02030544]
[1734127003941,0.63929181,101430.0,101420.0,0.02030544]
[1734127004338,0.70054122,101430.0,101420.0,0.02030544]
[1734127005529,0.52380468,101430.0,101420.0,0.02030544]
[1734127006233,0.46255527,101430.0,101420.0,0.02030544]
[1734127006434,0.52380468,101430.0,101420.0,0.02030544]
[1734127006835,0.46255527,101430.0,101420.0,0.02030544]
[1734127007043,0.52380468,101430.0,101420.0,0.02030544]
[1734127008433,0.72969016,101430.0,101420.0,0.02030544]
[1734127011645,0.66844075,101430.0,101420.0,0.02030544]
[1734127011846,0.72969016,101430.0,101420.0,0.02030544]
[1734127012248,0.63554075,101430.0,101420.0,0.58155485]
[1734127012447,0.60654278,101430.0,101420.0,0.25883823]
[1734127012746,0.60654278,101430.0,101420.0,1.04448138]
[1734127012942,0.60654278,101430.0,101420.0,1.10868138]
[1734127013147,0.60654278,101430.0,101420.0,1.16993079]
[1734127013357,0.60654278,101430.0,101420.0,1.10868138]
[1734127014547,0.60654278,101430.0,101420.0,0.93357464]
[1734127014744,0.58696951,101430.0,101420.0,1.16993079]
[1734127014948,0.73432372,101430.0,101420.0,1.16993079]
[1734127015150,0.74660287,101430.0,101420.0,1.16993079]
[1734127015535,0.56971536,101430.0,101420.0,1.16993079]
[1734127015741,0.74660287,101430.0,101420.0,1.16993079]
[1734127016349,0.56971536,101430.0,101420.0,1.16993079]
[1734127018453,0.68751106,101430.0,101420.0,1.16993079]
[1734127018860,0.68751106,101430.0,101420.0,1.1795991]
[1734127024351,0.68751106,101430.0,101420.0,0.94324295]
[1734127024657,0.68751106,101430.0,101420.0,0.87232523]
[1734127026158,0.74876047,101430.0,101420.0,0.87232523]
[1734127026369,0.74876047,101430.0,101420.0,0.80812523]
[1734127026553,0.74876047,101430.0,101420.0,0.93394497]
[1734127026748,0.65048562,101430.0,101420.0,0.69758882]
[1734127026954,0.65048562,101430.0,101420.0,0.52030544]
[1734127027152,0.82737313,101430.0,101420.0,0.52030544]
[1734127027354,0.68001892,101430.0,101420.0,0.52030544]
[1734127027852,0.68001892,101430.0,101420.0,0.02030544]
[1734127029355,0.50313141,101430.0,101420.0,0.02030544]
[1734127029558,0.67973826,101430.0,101420.0,0.02030544]
[1734127034765,0.68023826,101430.0,101420.0,0.02080544]
[1734127039863,0.69949958,101430.0,101420.0,0.02080544]
[1734127050270,0.64539155,101430.0,101420.0,0.02080544]
[1734127050472,0.049292,101410.0,101400.0,0.27728338]
[1734127050670,0.991585,101410.0,101400.0,0.27728338]
[1734127050879,1.21718394,101410.0,101400.0,0.1]
[1734127051079,1.04115584,101410.0,101400.0,0.1]
[1734127054777,1.04115584,101410.0,101400.0,0.1005]
[1734127055871,1.12695735,101410.0,101400.0,0.1005]
[1734127056072,1.18820676,101410.0,101400.0,0.1005]
[1734127056274,1.2004713,101410.0,101400.0,0.1005]
[1734127056576,0.93020746,101410.0,101400.0,0.33903279]
[1734127056776,0.62824972,101410.0,101400.0,0.33903279]
[1734127056973,0.62824972,101410.0,101400.0,2.27538894]
[1734127057169,0.6380304,101410.0,101400.0,2.27538894]
[1734127057573,0.62824972,101410.0,101400.0,2.33663835]
[1734127057776,0.62824972,101410.0,101400.0,2.27538894]
[1734127057973,0.61599332,101410.0,101400.0,1.07538894]
[1734127063478,0.61599332,101410.0,101400.0,1.13663835]
[1734127065185,0.25519332,101410.0,101400.0,1.07538894]
[1734127065482,0.08830071,101420.0,101400.0,2.3411571]
[1734127065782,0.32625833,101440.0,101410.0,0.93244309]
[1734127065988,0.11765703,101440.0,101430.0,0.71932868]
[1734127066284,0.049273,101450.0,101440.0,0.5]
[1734127066478,0.049273,101450.0,101440.0,1.00598611]
[1734127066887,0.049273,101450.0,101440.0,2.20598611]
[1734127067191,0.049273,101450.0,101440.0,1.97019371]
[1734127067572,0.60488585,101460.0,101440.0,2.56678611]
[1734127067782,0.13139027,101460.0,101450.0,0.23809371]
[1734127068082,0.13139027,101460.0,101440.0,1.70598611]
[1734127068083,0.64960844,101460.0,101440.0,1.70598611]
[1734127068286,0.02389497,101450.0,101440.0,1.47019371]
[1734127068490,0.41154741,101460.0,101440.0,0.33144312]
[1734127068675,0.02389456,101450.0,101440.0,0.77019371]
[1734127068987,0.52206782,101460.0,101440.0,1.97019371]
[1734127069189,0.52206782,101460.0,101440.0,0.5321]
[1734127069190,0.023894,101450.0,101440.0,0.5321]
[1734127069481,0.46081841,101460.0,101440.0,0.5321]
[1734127069678,0.023886,101450.0,101440.0,0.5321]
[1734127069987,0.049273,101450.0,101440.0,0.7089443]
[1734127071284,0.049273,101450.0,101440.0,0.5321]
[1734127071778,0.410073,101450.0,101440.0,0.5321]
[1734127072291,0.50333427,101450.0,101440.0,0.5]
[1734127072582,0.54816273,101450.0,101430.0,0.5]
[1734127072784,0.56693827,101440.0,101430.0,0.5]
[1734127073484,0.049282,101430.0,101420.0,0.5]
[1734127073787,0.50334327,101430.0,101420.0,0.5]
[1734127073984,0.049287,101420.0,101410.0,0.50147906]
[1734127074185,0.53594827,101420.0,101410.0,0.50147906]
[1734127074782,0.53594827,101420.0,101410.0,0.50197906]
[1734127075778,0.53594827,101420.0,101410.0,0.5]
[1734127075985,0.049292,101410.0,101400.0,0.1]
[1734127076184,0.56625327,101410.0,101400.0,0.1]
[1734127076485,0.57848173,101410.0,101400.0,0.1]
[1734127076792,0.56625327,101410.0,101400.0,0.1]
[1734127076983,0.472992,101410.0,101400.0,0.1]
[1734127079589,0.472992,101410.0,101400.0,0.6]
[1734127080990,0.48260829,101410.0,101400.0,0.6]
[1734127081290,0.48260829,101410.0,101400.0,1.8]
[1734127083990,0.3608,101410.0,101400.0,1.98652254]
[1734127084190,0.3608,101410.0,101400.0,1.89326127]
[1734127084785,0.3608,101410.0,101400.0,1.89376127]
[1734127085190,0.3608,101410.0,101400.0,1.8005]
[1734127086193,0.3608,101410.0,101400.0,1.89376127]
[1734127093099,0.3608,101410.0,101400.0,1.90341903]
[1734127096196,0.3608,101410.0,101400.0,1.93491903]
[1734127097109,0.3608,101410.0,101400.0,2.11176333]
[1734127100198,0.3608,101410.0,101400.0,2.34755573]
[1734127101210,0.3608,101410.0,101400.0,2.3767796]
[1734127102100,0.3608,101410.0,101400.0,2.74973455]
[1734127102499,0.3608,101410.0,101400.0,1.47883422]
[1734127102804,0.60122223,101410.0,101400.0,1.01339914]
[1734127103000,0.81328129,101410.0,101400.0,1.01339914]
[1734127103207,0.81328129,101410.0,101400.0,1.07464171]
[1734127103411,0.75203872,101410.0,101400.0,1.07464171]
[1734127103712,0.73980809,101410.0,101400.0,1.07464171]
[1734127103909,0.74030809,101410.0,101400.0,1.07464171]
[1734127104204,0.75258125,101410.0,101400.0,1.07464171]
[1734127107512,0.64482961,101410.0,101400.0,1.07464171]
[1734127108311,0.76268422,101410.0,101400.0,1.07464171]
[1734127108705,0.64482961,101410.0,101400.0,1.07464171]
[1734127108916,0.64482961,101410.0,101400.0,1.01339914]
[1734127109512,0.64482961,101410.0,101400.0,1.07464171]
[1734127109704,0.76269832,101410.0,101400.0,1.07464171]
[1734127110106,0.76269832,101410.0,101400.0,2.27464171]